Cogmind - Beta 15 @@@ ROGUE MODE // 2025.05.25 @ 13:28:22 Player: acra Result: Destroyed by G-73 Enforcer with Phase Gun Performance ------------- Evolutions (8) 4000 Regions Visited (11) 2200 Robots Destroyed (18) 90 Value Destroyed (479) 479 Prototype IDs (28) 560 Alien Tech Used (0) 0 Bonus (300) 300 TOTAL SCORE: 7629 Bonus ------- Aligned with FarCom 300 Cogmind --------- Core Integrity 0/1450 Matter 247/300 Energy 100/100 System Corruption 1% Temperature Cool (10) Movement Flying (30) Location -2/Research Parts ------- > --- POWER (1) -------- (None) > --- PROPULSION (4) --- Improved Diametric Drive > --- UTILITY (16) ----- Improved Signal Interpreter Advanced Terrain Scan Processor Advanced Terrain Scan Processor Advanced Terrain Scan Processor Hacking Suite Hacking Suite > --- WEAPON (2) ------- (None) > --- INVENTORY (5) ---- Advanced ECM Suite High-powered Shock Rifle Plasma Cannon Micro-nuke Launcher Peak State ------------ > --- POWER ------------ Micro Nuclear Core > --- PROPULSION ------- Nuclear Pulse Thruster Field Propulsion Drive Field Propulsion Drive > --- UTILITY ---------- Improved Heat Sink Experimental Matter Compressor Improved Signal Interpreter Advanced Signal Interpreter Advanced Terrain Scan Processor Advanced Terrain Scan Processor Advanced Terrain Scan Processor Core Analyzer Hacking Suite Hacking Suite > --- WEAPON ----------- Heavy Disruptor Cannon > --- INVENTORY -------- Advanced ECM Suite High-powered Shock Rifle Plasma Cannon [Rating: 78] Favorites ----------- Power Micro Nuclear Core Engine Light Ion Engine Power Core Micro Nuclear Core Propulsion Xenon Bombardment Thruster Leg Aluminum Leg Wheel Compact Wheel Hover Unit Aerolev Unit Flight Unit Xenon Bombardment Thruster Utility Advanced Terrain Scan Processor Device Terrain Scanner Storage Small Storage Unit Processor Advanced Terrain Scan Processor Hackware Hacking Suite Weapon EM Pulse Gun Energy Gun EM Pulse Gun Energy Cannon Plasma Cannon Ballistic Gun Hypervelocity Gauss Rifle Launcher Improved Grenade Launcher Piercing Weapon Enhanced Force Lance Build | -11 -10 -10 -10 -9 -8 -7 -6 -5 -4 -3 -2 ------- Run | Yrd Mat Min Exi Min Mat Fac Fac Fac Fac Res Res Slots Evolved 16 | . . . . . 4 2 2 2 2 2 2 Power . | . . . . . . . . . . . . Propulsion 2 | . . . . . 2 . . . . . . Utility 14 | . . . . . 2 2 2 2 2 2 2 Weapon . | . . . . . . . . . . . . Parts Attached 69 | 8 4 2 1 . 9 4 4 6 22 4 5 Power 8 | 1 2 . . . . 1 . . 3 . 1 Engine 4 | 1 2 . . . . . . . . . 1 Core 4 | . . . . . . 1 . . 3 . . Reactor . | . . . . . . . . . . . . Propulsion 24 | 2 2 . . . 7 . 1 . 9 2 1 Treads . | . . . . . . . . . . . . Leg 1 | 1 . . . . . . . . . . . Wheel 2 | 1 . . . . . . 1 . . . . Hover 5 | . . . . . 3 . . . 2 . . Flight 16 | . 2 . . . 4 . . . 7 2 1 Utility 26 | 2 . 2 1 . 2 2 2 5 8 1 1 Device 9 | 1 . 2 1 . . . . 1 3 . 1 Storage 2 | 1 . . . . . . . . . 1 . Processor 10 | . . . . . 1 2 . 3 4 . . Hackware 5 | . . . . . 1 . 2 1 1 . . Protection . | . . . . . . . . . . . . Artifact . | . . . . . . . . . . . . Weapon 11 | 3 . . . . . 1 1 1 2 1 2 Energy Gun 2 | 2 . . . . . . . . . . . Energy Cannon 4 | . . . . . . 1 . . 2 1 . Ballistic Gun 2 | 1 . . . . . . . 1 . . . Ballistic Cannon . | . . . . . . . . . . . . Launcher 2 | . . . . . . . 1 . . . 1 Special Weapon . | . . . . . . . . . . . . Impact Weapon . | . . . . . . . . . . . . Slashing Weapon . | . . . . . . . . . . . . Piercing Weapon 1 | . . . . . . . . . . . 1 Special Melee Weapon . | . . . . . . . . . . . . Unidentified Prototypes 6 | . . . 1 . 1 1 . . . 1 2 Corrupted Parts 1 | . 1 . . . . . . . . . . System Corruption 1 | . 1 . . . . . . . . . . Parts Lost 23 | . . . . . . 1 1 . 10 1 10 Power 2 | . . . . . . . . . 1 . 1 Propulsion 8 | . . . . . . . 1 . 3 . 4 Utility 11 | . . . . . . . . . 5 1 5 Weapon 2 | . . . . . . 1 . . 1 . . Highest Loss Streak 10 | . . . . . . 1 1 . 6 1 10 To Critical Strikes . | . . . . . . . . . . . . Average Backups 7 | 2 5 7 8 8 8 7 7 7 7 7 5 Power . | . 1 1 1 1 1 1 1 1 . . . Propulsion 1 | 1 2 2 2 2 1 1 . . . 2 . Utility 2 | . 1 2 3 3 3 2 2 3 3 1 1 Weapon 3 | . 1 2 2 2 2 3 3 3 3 3 3 Tool/Special . | . . . . . . . . . . . . Unused Backups 3 | . . 1 . . . . . . . 1 1 Power . | . . . . . . . . . . . . Propulsion 1 | . . 1 . . . . . . . . . Utility 1 | . . . . . . . . . . 1 . Weapon 1 | . . . . . . . . . . . 1 Tool/Special . | . . . . . . . . . . . . Average Slot Usage (%) 74 | . 88 62 60 71 64 84 80 79 76 79 51 Engine 3 | . 14 14 14 14 9 3 . . . . . Core 3 | . . . . . . 3 6 5 4 4 2 Wheel 2 | . 13 . . . . . 1 5 2 . . Flight 17 | . 1 28 28 28 18 30 22 11 14 18 9 Device 7 | . 3 2 3 14 9 10 11 5 8 8 2 Storage 7 | . 14 14 14 14 9 7 6 5 5 8 4 Processor 17 | . . . . . 6 18 13 21 27 28 22 Hackware 10 | . . . . . 3 7 16 20 10 9 8 Peak Build Rating 78 | 7 7 6 12 12 33 47 50 56 69 76 78 Average Rating 41 | 5 6 4 6 12 20 40 42 45 54 75 52 On Entrance 27 | . 7 6 4 12 12 33 41 33 48 61 73 Naked Turns . | . . . . . . . . . . . . Heaviest Build 28 | 15 15 9 16 16 16 20 26 25 28 15 14 Greatest Support 26 | 16 16 8 8 8 24 24 24 12 22 26 26 Greatest Overweight (x) 4 | . 1 1 1 1 2 . 1 2 4 . 2 Average Overweight (x) . | . . . . 1 . . . . . . . Largest Inventory Capacity 8 | 8 8 8 8 8 8 8 8 8 8 8 8 Average Capacity 7 | 7 8 8 8 8 8 8 8 8 8 8 6 Most Carried 8 | 4 8 8 8 8 8 8 8 8 8 8 8 Average Carried 7 | 2 5 7 8 8 8 7 7 7 7 7 6 Final Capacity 8 | 8 8 8 8 8 8 8 8 8 8 8 5 Final Carried 8 | 4 8 8 8 8 8 8 8 8 8 8 4 Class Distribution -------------------- 31% | Hacker-Scout 29% | Mutant 14% | Hacker-Sprinter 6% | Sprinter 6% | Scout 5% | Hacker-Mutant 3% | Hacker-Skirmisher Dominant Class ---------------- Mutant | -10/Materials Mutant | -10/Mines Mutant | -10/Exiles Mutant | -9/Mines Mutant | -8/Materials Mutant | -7/Factory Hacker-Scout | -6/Factory Hacker-Scout | -5/Factory Hacker-Scout | -4/Factory Hacker-Sprinter | -3/Research Hacker-Sprinter | -2/Research Resources | -11 -10 -10 -10 -9 -8 -7 -6 -5 -4 -3 -2 ----------- Run | Yrd Mat Min Exi Min Mat Fac Fac Fac Fac Res Res Matter Collected 1183 | 223 38 . . . 189 . 120 51 403 . 159 Remotely . | . . . . . . . . . . . . Salvage Created 458 | 26 78 . . . . . . . 354 . . Parts 36 | 2 11 . . . . . . . 23 . . Haulers Intercepted . | . . . . . . . . . . . . Recyclers Shooed 4 | . . . . . . . 1 . 3 . . Parts Field Recycled . | . . . . . . . . . . . . Retrieved Matter . | . . . . . . . . . . . . Parts Self-Destructed . | . . . . . . . . . . . . Prevented . | . . . . . . . . . . . . Kills | -11 -10 -10 -10 -9 -8 -7 -6 -5 -4 -3 -2 ------- Run | Yrd Mat Min Exi Min Mat Fac Fac Fac Fac Res Res Combat Hostiles Destroyed 16 | . 3 . . . . . 2 . 11 . . Guns 2 | . 2 . . . . . . . . . . Cannons 11 | . . . . . . . . . 11 . . AOE 3 | . 1 . . . . . 2 . . . . Classes Destroyed 5 | 1 2 . . . . . 1 . 1 . . Builder 1 | . 1 . . . . . . . . . . Tunneler 1 | 1 . . . . . . . . . . . Swarmer 12 | . 3 . . . . . . . 9 . . Cutter 2 | . . . . . . . 2 . . . . Programmer 2 | . . . . . . . . . 2 . . Best Kill Streak 5 | 1 3 . . . . . 2 . 5 . . Combat Bots Only 5 | . 3 . . . . . 2 . 5 . . Max Kills in Single Turn 1 | 1 1 . . . . . 1 . 1 . . Gunslinging . | . . . . . . . . . . . . Exploded 1 | . 1 . . . . . 1 . . . . Melee . | . . . . . . . . . . . . Uniques/NPCs Destroyed . | . . . . . . . . . . . . Combat | -11 -10 -10 -10 -9 -8 -7 -6 -5 -4 -3 -2 -------- Run | Yrd Mat Min Exi Min Mat Fac Fac Fac Fac Res Res Hostile Shots Fired 288 | . 9 . . . 3 4 10 14 80 4 164 Missed 147 | . 2 . . . 3 3 4 11 24 2 98 Hits 141 | . 7 . . . . 1 6 3 56 2 66 Melee 6 | . . . . . . . 6 . . . . Projectile 135 | . 7 . . . . 1 . 3 56 2 66 AOE 2 | . . . . . . . 2 . . . . Critical Strikes 8 | . . . . . . . 2 . 2 . 4 Damage Taken 3430 | . 58 . . . . 15 358 56 902 58 1983 Core 1854 | . 16 . . . . . 128 . 226 28 1456 Absorbed by Shields . | . . . . . . . . . . . . Core Remaining (%) 94 | 100 . . . 93 100 100 84 100 80 97 . Volleys Fired 56 | 8 6 . . . . . 8 . 33 . 1 Largest 2 | 1 2 . . . . . 1 . 2 . 1 Hottest 155 | 20 80 . . . . . 36 . 155 . 49 Shots Fired 65 | 8 10 . . . . . 8 . 38 . 1 Gun 18 | 8 10 . . . . . . . . . . Cannon 38 | . . . . . . . . . 38 . . Launcher 9 | . . . . . . . 8 . . . 1 Special . | . . . . . . . . . . . . Kinetic 10 | 8 2 . . . . . . . . . . Thermal 30 | . . . . . . . . . 30 . . Explosive 9 | . . . . . . . 8 . . . 1 Electromagnetic 16 | . 8 . . . . . . . 8 . . Robot Hit Streak 15 | 2 5 . . . . . 7 . 15 . . Robot Miss Streak 3 | 3 2 . . . . . 1 . 3 . . Penetration Max . | . . . . . . . . . . . . Secondary Targets 1 | . 1 . . . . . . . . . . Max Gunslinging Chain 1 | . 1 . . . . . . . . . . Shots Hit Robots 38 | 4 7 . . . . . 2 . 25 . . Core Hits 23 | 1 4 . . . . . 4 . 14 . . Critical Kills . | . . . . . . . . . . . . Critical Parts Destroyed . | . . . . . . . . . . . . Critical Strikes . | . . . . . . . . . . . . Melee Attacks . | . . . . . . . . . . . . Impact . | . . . . . . . . . . . . Slashing . | . . . . . . . . . . . . Piercing . | . . . . . . . . . . . . Sneak Attacks . | . . . . . . . . . . . . Combat Hostiles . | . . . . . . . . . . . . Follow-up Attacks . | . . . . . . . . . . . . Damage Inflicted 1302 | 47 112 . . . . . 350 . 744 . 49 Guns 115 | 47 68 . . . . . . . . . . Cannons 744 | . . . . . . . . . 744 . . Explosions 394 | . 44 . . . . . 350 . . . . Melee . | . . . . . . . . . . . . Ramming 49 | . . . . . . . . . . . 49 Kinetic 58 | 47 11 . . . . . . . . . . Thermal 616 | . 44 . . . . . . . 572 . . Explosive 350 | . . . . . . . 350 . . . . Electromagnetic 229 | . 57 . . . . . . . 172 . . Impact . | . . . . . . . . . . . . Slashing . | . . . . . . . . . . . . Piercing . | . . . . . . . . . . . . Highest Corruption 1 | . 1 1 1 1 . . 1 . . . 1 Average Corruption 1 | . 1 1 1 1 . . 1 . . . 1 Corruption Purged . | . . . . . . . . . . . . Corruption Blocked . | . . . . . . . . . . . . Effects 10 | . . . 1 1 . . 4 . . . 4 Message Errors 6 | . . . . 1 . . 3 . . . 2 Matter Fused 1 | . . . . . . . . . . . 1 Heat Flow Errors 1 | . . . . . . . 1 . . . . Energy Discharges 1 | . . . . . . . . . . . 1 Data Loss (minor) 1 | . . . 1 . . . . . . . . Overload Shots . | . . . . . . . . . . . . Overflow Damage 59 | . . . . . . . 55 . 4 . . Projectiles 4 | . . . . . . . . . 4 . . Explosions 55 | . . . . . . . 55 . . . . Melee . | . . . . . . . . . . . . Knockbacks . | . . . . . . . . . . . . Impact . | . . . . . . . . . . . . Kinetic . | . . . . . . . . . . . . Secondary . | . . . . . . . . . . . . Self-Inflicted Damage 148 | . . . . . . . 103 . . . 45 Shots 5 | . . . . . . . 4 . . . 1 Rammed 5 | . . . . . . . . . . . 5 Targets Rammed 5 | . . . . . . . . . . . 5 Kicked . | . . . . . . . . . . . . Crushed . | . . . . . . . . . . . . Highest Temperature 188 | . 72 . . . . . 188 . 94 . . Average Temperature 41 | . 37 . . . . . 86 . 35 . . Received Heat Transfer 132 | . . . . . . . . 9 33 18 72 Siege Activations . | . . . . . . . . . . . . Martial Activations . | . . . . . . . . . . . . Shielding Activations . | . . . . . . . . . . . . Robots Disrupted . | . . . . . . . . . . . . Combat Hostiles . | . . . . . . . . . . . . Robots Corrupted . | . . . . . . . . . . . . Combat Hostiles . | . . . . . . . . . . . . Parts Fried 2 | . 1 . . . . . . . 1 . . Impact Corruptions . | . . . . . . . . . . . . Robots Melted . | . . . . . . . . . . . . Combat Hostiles . | . . . . . . . . . . . . Parts Melted 3 | . . . . . . . . . 3 . . Heat Transferred 1050 | . . . . . . . . . 1050 . . Parts Sabotaged . | . . . . . . . . . . . . Parts Stolen . | . . . . . . . . . . . . Parts Stripped . | . . . . . . . . . . . . Power Chain Reactions 1 | . 1 . . . . . . . . . . Alert | -11 -10 -10 -10 -9 -8 -7 -6 -5 -4 -3 -2 ------- Run | Yrd Mat Min Exi Min Mat Fac Fac Fac Fac Res Res Maximum Alert Level 1 | . . . . . . . . . . . 1 Low Security (%) 99 | 100 100 100 . 100 100 100 100 100 100 100 96 Level 1 . | . . . . . . . . . . . 3 Level 2 . | . . . . . . . . . . . . Level 3 . | . . . . . . . . . . . . Level 4 . | . . . . . . . . . . . . Level 5 . | . . . . . . . . . . . . High Security . | . . . . . . . . . . . . Max Security . | . . . . . . . . . . . . Peak Influence 265 | 5 61 19 . . 45 110 73 52 125 62 265 Initial 62 | . . 19 . . . 20 49 . 14 62 . Average 17 | . 13 5 . . 1 16 28 6 27 14 35 Influence Increases 1524 | 5 76 . . . 62 152 229 149 436 15 400 Destroy 0b10 Robot/C 320 | . 60 . . . . . 40 . 220 . . Destroy 0b10 Robot/NC 10 | 5 5 . . . . . . . . . . Destroy Leader 50 | . 10 . . . . . 10 . 30 . . Successful Hack 149 | . . . . . 17 47 43 14 21 . 7 Disable Machine 30 | . . . . . . . 30 . . . . Destroy Structure 95 | . 1 . . . . . 46 . . . 48 Partial Spotted 165 | . . . . . . . 45 75 15 15 15 Lose Combat Pursuer 705 | . . . . . 45 105 15 60 150 . 330 Influence Decreases 1259 | 5 25 51 . . 17 97 329 119 347 134 135 Entered New Map 181 | . . 32 . . . 25 51 . 16 57 . Time Decay 932 | 5 25 19 . . 17 72 221 119 267 72 115 Lost Part 99 | . . . . . . . 10 . 64 5 20 Purge Threat 47 | . . . . . . . 47 . . . . Squads Dispatched 19 | . 1 . . . 2 . 4 2 3 1 6 Investigation 6 | . . . . . . . 1 1 1 1 2 Extermination 6 | . . . . . . . 1 1 2 . 2 Reinforcement 7 | . 1 . . . 2 . 2 . . . 2 Assault . | . . . . . . . . . . . . Garrison . | . . . . . . . . . . . . Intercept . | . . . . . . . . . . . . Searches Triggered . | . . . . . . . . . . . . Construction Impeded . | . . . . . . . . . . . . Haulers Reinforced . | . . . . . . . . . . . . Active Scanning Responses . | . . . . . . . . . . . . Cargo Convoy Interrupts . | . . . . . . . . . . . . Stealth | -11 -10 -10 -10 -9 -8 -7 -6 -5 -4 -3 -2 --------- Run | Yrd Mat Min Exi Min Mat Fac Fac Fac Fac Res Res Distress Signals 7 | . 1 . . . 2 . . 1 1 . 2 Communications Jammed . | . . . . . . . . . . . . Distress Signals . | . . . . . . . . . . . . Times Spotted 92 | . 6 . . . 3 3 5 9 26 2 38 Peak Tracking Total 17 | . 7 . . . 3 4 3 4 6 1 17 Tactical Retreats 14 | . . . . . 1 1 1 2 3 . 6 Traps | -11 -10 -10 -10 -9 -8 -7 -6 -5 -4 -3 -2 ------- Run | Yrd Mat Min Exi Min Mat Fac Fac Fac Fac Res Res Traps Triggered 9 | . . . . . . 2 1 . 4 1 1 Indirectly . | . . . . . . . . . . . . Trap Hack Attempts . | . . . . . . . . . . . . Triggered . | . . . . . . . . . . . . Disarmed . | . . . . . . . . . . . . Reprogrammed . | . . . . . . . . . . . . Reused . | . . . . . . . . . . . . Traps Extracted . | . . . . . . . . . . . . Installed . | . . . . . . . . . . . . Triggered . | . . . . . . . . . . . . Machines | -11 -10 -10 -10 -9 -8 -7 -6 -5 -4 -3 -2 ---------- Run | Yrd Mat Min Exi Min Mat Fac Fac Fac Fac Res Res Machines Disabled 2 | . . . . . . . 2 . . . . Max in Single Turn 1 | . . . . . . . 1 . . . . Machines Repaired . | . . . . . . . . . . . . Machines Dismantled . | . . . . . . . . . . . . Machines Sabotaged . | . . . . . . . . . . . . Overloaded Fab Kills . | . . . . . . . . . . . . Hacking | -11 -10 -10 -10 -9 -8 -7 -6 -5 -4 -3 -2 --------- Run | Yrd Mat Min Exi Min Mat Fac Fac Fac Fac Res Res Machines Accessed 37 | . . . 5 . 4 6 4 5 7 1 5 Terminals 25 | . . . . . 4 5 3 3 5 1 4 Fabricators 3 | . . . . . . . 1 1 . . 1 Repair Stations . | . . . . . . . . . . . . Recycling Units 4 | . . . . . . 1 . 1 2 . . Scanalyzers . | . . . . . . . . . . . . Garrison Access . | . . . . . . . . . . . . Total Hacks 109 | . . . 50 . 8 11 9 9 11 2 9 Successful 77 | . . . 50 . 4 4 6 5 6 . 2 Failed 32 | . . . . . 4 7 3 4 5 2 7 Catastrophic 11 | . . . . . 1 . 2 . 3 1 4 Database Lockouts . | . . . . . . . . . . . . Manual 28 | . . . 2 . 4 3 7 4 4 1 3 Terminals 47 | . . . . . 8 10 7 5 7 2 8 Fabricators 6 | . . . . . . . 2 3 . . 1 Repair Stations . | . . . . . . . . . . . . Recycling Units 6 | . . . . . . 1 . 1 4 . . Scanalyzers . | . . . . . . . . . . . . Garrison Access . | . . . . . . . . . . . . Terminal Hacks 69 | . . . 50 . 4 4 4 2 3 . 2 Record 49 | . . . 49 . . . . . . . . Part Schematic 1 | . . . . . . . 1 . . . . Open DSF 2 | . . . . . . 1 . . 1 . . Level Access Points 5 | . . . . . 1 . 1 1 1 . 1 Branch Access Points 1 | . . . . . . . . . . . 1 Terminal Index 3 | . . . . . . 1 1 1 . . . Alert Level 1 | . . . . . 1 . . . . . . Unreport Threat 1 | . . . . . . . 1 . . . . Dispatch Records 1 | . . . . . . 1 . . . . . Registered Components 1 | . . . . . 1 . . . . . . Zone Layout 3 | . . . . . 1 1 . . 1 . . Proto ID Catalog 1 | . . . 1 . . . . . . . . Fabricator Hacks 4 | . . . . . . . 2 2 . . . Load Schematic 2 | . . . . . . . 1 1 . . . Build 2 | . . . . . . . 1 1 . . . Repair Station Hacks . | . . . . . . . . . . . . Recycling Unit Hacks 4 | . . . . . . . . 1 3 . . Report Inventory 2 | . . . . . . . . 1 1 . . Retrieve Matter 2 | . . . . . . . . . 2 . . Scanalyzer . | . . . . . . . . . . . . Garrison Access Hacks . | . . . . . . . . . . . . Unauthorized Hacks . | . . . . . . . . . . . . Terminals . | . . . . . . . . . . . . Fabricators . | . . . . . . . . . . . . Repair Stations . | . . . . . . . . . . . . Recycling Units . | . . . . . . . . . . . . Scanalyzers . | . . . . . . . . . . . . Garrison Access . | . . . . . . . . . . . . Data Cores Recovered . | . . . . . . . . . . . . Used . | . . . . . . . . . . . . Hacking Detections 27 | . . . . . 2 5 4 4 6 1 5 Full Trace Events 6 | . . . . . . . 1 1 1 1 2 Feedback Events 1 | . . . . . . . . . . . 1 Corruption 1 | . . . . . . . . . . . 1 Feedback Blocked . | . . . . . . . . . . . . Robot Schematics Acquired . | . . . . . . . . . . . . Robots Built . | . . . . . . . . . . . . Authchips . | . . . . . . . . . . . . Time . | . . . . . . . . . . . . Total Robot Build Rating . | . . . . . . . . . . . . Part Schematics Acquired 1 | . . . . . . . 1 . . . . Parts Built 2 | . . . . . . . 1 1 . . . Authchips . | . . . . . . . . . . . . Time 72 | . . . . . . . 36 36 . . . Total Part Build Rating 6 | . . . . . . . 3 3 . . . Parts Repaired . | . . . . . . . . . . . . Time . | . . . . . . . . . . . . Parts Recycled . | . . . . . . . . . . . . Recycled Matter . | . . . . . . . . . . . . Retrieved Matter . | . . . . . . . . . . . . Retrieved Components . | . . . . . . . . . . . . Parts Scanalyzed . | . . . . . . . . . . . . Part Schematics Acquired . | . . . . . . . . . . . . Parts Damaged . | . . . . . . . . . . . . Bothacking | -11 -10 -10 -10 -9 -8 -7 -6 -5 -4 -3 -2 ------------ Run | Yrd Mat Min Exi Min Mat Fac Fac Fac Fac Res Res Used RIF Installer . | . . . . . . . . . . . . Robots Hacked . | . . . . . . . . . . . . Non-combat . | . . . . . . . . . . . . Combat . | . . . . . . . . . . . . Robot Hacks Applied . | . . . . . . . . . . . . Relay Couplers Released . | . . . . . . . . . . . . Fabnet Peak Effective % . | . . . . . . . . . . . . Robots Rewired . | . . . . . . . . . . . . Allies Hacked . | . . . . . . . . . . . . Hacks Repelled . | . . . . . . . . . . . . Allies | -11 -10 -10 -10 -9 -8 -7 -6 -5 -4 -3 -2 -------- Run | Yrd Mat Min Exi Min Mat Fac Fac Fac Fac Res Res Total Allies . | . . . . . . . . . . . . Largest Group . | . . . . . . . . . . . . Highest-Rated Group . | . . . . . . . . . . . . Highest-Rated Ally . | . . . . . . . . . . . . Total Orders . | . . . . . . . . . . . . Ally Attacks . | . . . . . . . . . . . . Total Damage . | . . . . . . . . . . . . Kills . | . . . . . . . . . . . . Allies Corrupted . | . . . . . . . . . . . . Allies Melted . | . . . . . . . . . . . . Intel | -11 -10 -10 -10 -9 -8 -7 -6 -5 -4 -3 -2 ------- Run | Yrd Mat Min Exi Min Mat Fac Fac Fac Fac Res Res Active Infowar (turns) 2308 | 10 21 19 1 . 5 167 682 1038 365 . . Terrain 2235 | . . 9 . . . 167 682 1038 339 . . Structural 10 | . . 10 . . . . . . . . . Traps 1 | . . . . . . . . 1 . . . Seismic 31 | 10 21 . . . . . . . . . . Cloaking 70 | . . . 1 . 5 12 27 . 25 . . ECM 1 | . . . . . . . . . 1 . . Robot Analysis Total . | . . . . . . . . . . . . Derelict Logs Recovered 1 | . . 1 . . . . . . . . . Drone Launches . | . . . . . . . . . . . . Drone Recoveries . | . . . . . . . . . . . . Exploration | -11 -10 -10 -10 -9 -8 -7 -6 -5 -4 -3 -2 ------------- Run | Yrd Mat Min Exi Min Mat Fac Fac Fac Fac Res Res Turns Passed 5128 | 93 132 92 419 61 396 368 682 1038 1136 333 378 Spaces Moved 6116 | 62 102 201 917 53 415 580 757 901 1209 238 681 Core 147 | 1 . . . . . . . . . . 146 Treads . | . . . . . . . . . . . . Legs . | . . . . . . . . . . . . Wheels 251 | 61 100 . . . . . 81 . 9 . . Hover 305 | . . . . . 291 . . . 14 . . Flight 5413 | . 2 201 917 53 124 580 676 901 1186 238 535 Fastest Speed 26 | 50 100 37 37 117 31 31 31 42 26 29 30 Average Speed 45 | 99 100 42 45 117 91 31 44 44 36 32 38 Slowest Speed 355 | 100 117 117 117 117 200 34 122 202 355 35 150 Overloaded Moves . | . . . . . . . . . . . . Propulsion Burnouts . | . . . . . . . . . . . . Robots Hopped 35 | . . 3 . . . 5 . 2 7 3 15 Potential Cave-ins . | . . . . . . . . . . . . Cave-ins Triggered . | . . . . . . . . . . . . Exploration Rate (%) 28 | 5 25 45 93 24 38 17 17 20 35 7 18 Regions Visited 11 Branch Regions 3 Pre-discovered Areas 1 | . . . 1 . . . . . . . . Known Exits Taken 6 | . . . . . 1 1 1 1 1 1 . Unknown Exits Taken 5 | 1 1 1 1 1 . . . . . . . Scrap Searched 1 | . . 1 . . . . . . . . . Spaces Dug 62 | . . . . . . . 47 . . . 15 Terrain Destroyed 91 | . 1 . . . . . 75 . . . 15 Melee . | . . . . . . . . . . . . Projectile . | . . . . . . . . . . . . AOE 91 | . 1 . . . . . 75 . . . 15 Terrain Rammed . | . . . . . . . . . . . . Walls Destroyed . | . . . . . . . . . . . . Machines Disabled . | . . . . . . . . . . . . Actions | -11 -10 -10 -10 -9 -8 -7 -6 -5 -4 -3 -2 --------- Run | Yrd Mat Min Exi Min Mat Fac Fac Fac Fac Res Res Total 8316 | 82 119 206 917 52 430 757 1096 1535 1851 489 782 Wait 1976 | . . . . . . 135 320 615 566 242 98 Move 6039 | 61 101 195 916 52 414 569 756 896 1195 231 653 Hop 31 | . . 2 . . . 5 . 2 6 3 13 Pick Up 18 | 5 4 1 . . 1 . 1 4 2 . . Fast Attach 61 | 6 1 . 1 . 6 4 2 6 24 6 5 Attach 19 | 1 . 1 . . . 2 5 3 6 . 1 Detach 21 | . . 3 . . . 3 4 2 6 1 2 Swap 21 | 1 5 1 . . 3 2 . . 7 2 . Drop 33 | . 2 3 . . 6 1 . 7 6 4 4 Fire 56 | 8 6 . . . . . 8 . 33 . 1 Melee . | . . . . . . . . . . . . Ram 5 | . . . . . . . . . . . 5 Kick . | . . . . . . . . . . . . Crush . | . . . . . . . . . . . . Escape Stasis 36 | . . . . . . 36 . . . . . Rewire . | . . . . . . . . . . . . Trap . | . . . . . . . . . . . . Miscellaneous . | . . . . . . . . . . . . Route ------- -11/Scrapyard -10/Materials -10/Mines -10/Exiles (discovered 2 exits: [*Min x2]) -9/Mines -8/Materials (discovered 3 exits: *Fac x3) -7/Factory (discovered 2 exits: *Fac / DSF) -6/Factory (discovered 4 exits: *Fac x4) -5/Factory (discovered 4 exits: *Fac x4) -4/Factory (discovered 4 exits: *Res x4) -3/Research -2/Research (discovered 5 exits: Acc x3 / Qua x2) History --------- Turn | Location | Event 24 | -11/Scrapyard | Discovered new exit (range 15) 94 | -11/Scrapyard | Entered Materials 186 | -10/Materials | Discovered new exit (range 12) 226 | -10/Materials | Entered Mines 233 | -10/Mines | Learned Materials interactive machine intel 292 | -10/Mines | Deemed a non-threat by the Exiles lab entrance 293 | -10/Mines | Discovered new exit (range 5) 315 | -10/Mines | Build established: Mutant 318 | -10/Mines | Entered Exiles 324 | -10/Exiles | Discovered new exit (range 15) 329 | -10/Exiles | Met 8R-AWN 335 | -10/Exiles | Met EX-HEX 353 | -10/Exiles | Met EX-DEC 363 | -10/Exiles | Learned location of Zion (-6) 378 | -10/Exiles | Discovered new exit (range 15) 411 | -10/Exiles | Met EX-BIN 472 | -10/Exiles | Visited The Gauntlet 611 | -10/Exiles | Aligned with FarCom system 611 | -10/Exiles | Given EX-Vault access code 620 | -10/Exiles | Opened EX-Vault 622 | -10/Exiles | Found Prototype Device 622 | -10/Exiles | Identified Cloak of Protection 650 | -10/Exiles | Warned to stay clear of 0b10 Research branches 667 | -10/Exiles | Exiles lab attacked by MAIN.C 737 | -10/Exiles | Left Exiles lab with Cloak of Protection 737 | -10/Exiles | Entered Mines 784 | -9/Mines | Discovered new exit (range 15) 798 | -9/Mines | Entered Materials 798 | -8/Materials | Evolved 4 slots: Propulsion x2, Utility x2 799 | -8/Materials | Loaded intel: 19 interactive machine locations 1004 | -8/Materials | Identified exit to Factory 1194 | -8/Materials | Entered Factory 1194 | -7/Factory | Evolved 2 slots: Utility x2 1426 | -7/Factory | Identified exit to DSF 1557 | -7/Factory | Discovered new exit (range 15) 1562 | -7/Factory | Identified exit to Factory 1562 | -7/Factory | Entered another Factory area 1562 | -6/Factory | Evolved 2 slots: Utility x2 1664 | -6/Factory | Identified exit to Factory 1692 | -6/Factory | Build established: Scout 1742 | -6/Factory | Fabricated Hacking Suite (x1) 2007 | -6/Factory | Build established: Hacker-Scout 2244 | -6/Factory | Entered another Factory area 2244 | -5/Factory | Evolved 2 slots: Utility x2 2633 | -5/Factory | Fabricated Hacking Suite (x1) 3025 | -5/Factory | Identified exit to Factory 3282 | -5/Factory | Entered another Factory area 3282 | -4/Factory | Evolved 2 slots: Utility x2 3674 | -4/Factory | Lost 6 parts (1p1n4u) 4214 | -4/Factory | Build established: Sprinter 4398 | -4/Factory | Identified exit to Research 4418 | -4/Factory | Entered Research 4418 | -3/Research | Evolved 2 slots: Utility x2 4551 | -3/Research | Build established: Hacker-Sprinter 4699 | -3/Research | Discovered new exit (range 15) 4751 | -3/Research | Identified exit to Research 4751 | -3/Research | Entered another Research area 4751 | -2/Research | Evolved 2 slots: Utility x2 4972 | -2/Research | Spotted B-90 Cyclops 4999 | -2/Research | Core integrity fell below 50% 5025 | -2/Research | Lost 10 parts (1p4n5u) 5025 | -2/Research | Core integrity fell below 20% 5058 | -2/Research | Identified exit to Quarantine 5058 | -2/Research | Identified exit to Access 5129 | -2/Research | Destroyed by G-73 Enforcer with Phase Gun Last Messages --------------- Programmers report to Research Zone 3L. Acquired Enh. Force Lance. Acquired Prototype Flight Unit. Identified Imp. Diametric Drive. Dropped Enh. Force Lance. Terminal disabled. Drone sends a signal. Slug penetrates Wall. Drone sends a signal. H-88 Terminator retrieves Drone. Penetrated by Slug. Slug penetrates H-88 Terminator. Slug penetrates Wall. Slug penetrates Recycling Unit. H-88 Terminator retrieves Drone. Penetrated by Slug. Slug penetrates Wall. Acquired Micro-nuke Launcher. Dropped Hvy. Disruptor Cannon. The unstable cave ceiling collapses. Map ----- +----------------------------------------------------+ | ??######## """ "" # # """ ??????????????# | | ?????????# # # """ #?????????????# | | ?????????# + + """ =#?????????????# | | ?????????# # # #?????????????# | | ?????????# # # #?????????????? | | ?????????############# #? #?????????????? | | ###??????????????????# #? #?????????????? | | #??????????????????# #??#######?????????????? | | #??????????????????# #??????????????????????? | | #??????????????????+ #??????????????????????? | | #??????????????????#g #??????????????????????? | | #??????????????????# #??#######?????????????? | | #??????????????????# #Y ??????????????? | | #??????????????????#gg #? ???????????????? | | #??????????????????#g # """" ???????????????# | | #??????????????????# # ""R"" ?????########?# | | #??????????????????# + "" "" ?????#= ! #?# | | #??????????????????# # #???# ! + | | #??????????????????# # #???# ### | | #########???######???# #? #???# ! #?# | | #???# ??# ###########????? = #?# | | #???? ?# # #######???? #?? | | """"" #????? "" # # # #######+### | | ""Y"" #????? "" + # # h | | #????? "T # # + " | | #????? "" ??# A@# ! # | | = #??????"?????# # # #######+### | | #????????????#k # ## ##????????? | | #########????????????# # ] #????????? | | ?????????????????????# # #????????? | | ?????????????????????# # = !! #????????? | | ###?????????########## ###### # !! #????????? | | ?????????? # ###### p ###????????? | | ?????????? # # ##?????????## | | """????????? # # ##??????????# | | """????????? # # #???????????# | | ""??????????? ?#w o# #??????###### | | ""??????????? ?+ + #??????# + | | ????????????? ??# # """ #??????# #### | | ????????????? ??# # """ ######## #### | | #+###############+#### # """ #! # ## | | ########### # " ### | | #?????????# + T" | | #?????????#! # ### | | ^ #?????????# [ # #?# | | #+#############+###########?????????########+###?# | | ?????????? ?????????????????????????? ???# | | ???????? ????????????????????????? ???? | | ????? ??????????????????????? ???? | | #???? ?????????????????????? """"???? | +----------------------------------------------------+ Best States ------------- Heat Dissipation 74 Energy Generation 15 Energy Capacity 250 Matter Stores 300 Matter Capacity 800 Sight Range 16 Terrain Scan Range 14 Terrain Scan Density 810 Cloak Strength 5 Evasion (%) 64 Core Analysis 6 Offensive Hacking 44 Item Schematics ----------------- Hacking Suite | -6/Factory | Hacked Robot Schematics ------------------ None Fabricated ------------ Hacking Suite | x1 | -6/Factory Hacking Suite | x1 | -5/Factory Repaired ---------- Nothing Alien Tech Used ----------------- None Achievements -------------- None Challenges ------------ None Game ------ Seed GyrokineticFusionObliterator Manual? 0 Play Time 01:12:08 Cumulative 39.6 hours Start 2025.05.25 @ 12:11:31 End 2025.05.25 @ 13:28:22 Sessions 1 Manual Loads 0 Difficulty Rogue Special Mode None Game No. 68 Rogue 50 Adventurer 17 Explorer 1 Win Type - Total 3 Types 3/0/0/0/0/0/0/0/0/0 Lore% 13 Gallery% 33 Achievement% 33 Wizard Run 0 Options --------- Layout 1 ASCII 0 Keyboard 0 Movement Arrows Keybinds 0 Fullscreen 1 Font 24/Smallcaps Map View 50x35 Zoom Use 0% Tactical HUD 0 Map Filters NONE Filters NONE Steam 1 RUN: 322ef1b1-7c2e-4b72-857c-1cd82f00b81c